[Event "Titled Tuesday Blitz August 08 Early 2023"]
[White "LangesNasenhaar"]
[Black "Harriott, Tyrell"]
[BlackFideId "2086484"]
[WhiteElo "2554"]
[BlackElo "2427"]
[Result "0-1"]
[Round "11"]
[TimeControl "180+1"]
[Date "2023.08.08"]
[WhiteClock "0:00:02"]
[BlackClock "0:00:22"]
[Board "86"]

1. d4 {[%clk 0:03:00]}  e6 {[%clk 0:02:59]} 2. Nc3 {[%clk 0:02:56]}  d5 {[%clk 0:02:59]} 3. Bf4 {[%clk 0:02:57]}  Bd6 {[%clk 0:02:57]} 4. e3 {[%clk 0:02:56]}  Ne7 {[%clk 0:02:57]} 5. Qf3 {[%clk 0:02:56]}  Ng6 {[%clk 0:02:55]} 6. Bg3 {[%clk 0:02:55]}  O-O {[%clk 0:02:54]} 7. Bd3 {[%clk 0:02:55]}  f5 {[%clk 0:02:53]} 8. h4 {[%clk 0:02:52]}  f4 {[%clk 0:02:52]} 9. exf4 {[%clk 0:02:48]}  Nxf4 {[%clk 0:02:51]} 10. Bxf4 {[%clk 0:02:44]}  Bxf4 {[%clk 0:02:51]} 11. Qh5 {[%clk 0:02:32]}  g6 {[%clk 0:02:50]} 12. Qe2 {[%clk 0:02:12]}  Nc6 {[%clk 0:02:47]} 13. Nf3 {[%clk 0:02:11]}  Qf6 {[%clk 0:02:46]} 14. O-O {[%clk 0:02:03]}  Nxd4 {[%clk 0:02:43]} 15. Nxd4 {[%clk 0:02:02]}  Qxd4 {[%clk 0:02:44]} 16. h5 {[%clk 0:01:53]}  Kg7 {[%clk 0:02:28]} 17. Nb5 {[%clk 0:01:38]}  Qxb2 {[%clk 0:02:12]} 18. hxg6 {[%clk 0:01:14]}  hxg6 {[%clk 0:02:09]} 19. g3 {[%clk 0:01:11]}  Bd6 {[%clk 0:01:59]} 20. Kg2 {[%clk 0:00:59]}  Qf6 {[%clk 0:01:52]} 21. Rh1 {[%clk 0:00:52]}  e5 {[%clk 0:01:48]} 22. Rh4 {[%clk 0:00:48]}  e4 {[%clk 0:01:42]} 23. Rah1 {[%clk 0:00:37]}  exd3 {[%clk 0:01:32]} 24. Rh7+ {[%clk 0:00:36]}  Kg8 {[%clk 0:01:32]} 25. Rh8+ {[%clk 0:00:34]}  Qxh8 {[%clk 0:01:27]} 26. Rxh8+ {[%clk 0:00:35]}  Kxh8 {[%clk 0:01:27]} 27. Qxd3 {[%clk 0:00:36]}  Bf5 {[%clk 0:01:17]} 28. Qd4+ {[%clk 0:00:33]}  Kg8 {[%clk 0:01:15]} 29. Qxd5+ {[%clk 0:00:32]}  Rf7 {[%clk 0:01:16]} 30. g4 {[%clk 0:00:18]}  Bxg4 {[%clk 0:01:12]} 31. Kg1 {[%clk 0:00:08]}  Rd8 {[%clk 0:01:01]} 32. Qg5 {[%clk 0:00:04]}  Be7 {[%clk 0:00:38]} 33. Qxg4 {[%clk 0:00:04]}  c6 {[%clk 0:00:37]} 34. Nc3 {[%clk 0:00:03]}  Bf6 {[%clk 0:00:36]} 35. Ne4 {[%clk 0:00:03]}  Be7 {[%clk 0:00:36]} 36. Kf1 {[%clk 0:00:02]}  Kg7 {[%clk 0:00:32]} 37. Qe6 {[%clk 0:00:01]}  Rdf8 {[%clk 0:00:30]} 38. Qe5+ {[%clk 0:00:01]}  Bf6 {[%clk 0:00:30]} 39. Qe6 {[%clk 0:00:01]}  Bc3 {[%clk 0:00:27]} 40. Kg2 {[%clk 0:00:01]}  Bd4 {[%clk 0:00:26]} 41. Qg4 {[%clk 0:00:01]}  Bxf2 {[%clk 0:00:22]} 42. Qf5 {[%clk 0:00:02]} 0-1


[Site "https://www.chess.com"]

[Event "Titled Tuesday Blitz August 08 Early 2023"]
[White "Cheer_Down"]
[Black "Camilla_Lee"]
[WhiteElo "2422"]
[BlackElo "2549"]
[Result "1-0"]
[Round "11"]
[TimeControl "180+1"]
[Date "2023.08.08"]
[WhiteClock "0:01:49"]
[BlackClock "0:02:06"]
[Board "87"]

1. e4 {[%clk 0:02:54]}  e5 {[%clk 0:02:59]} 2. Nf3 {[%clk 0:02:54]}  Nc6 {[%clk 0:03:00]} 3. Bc4 {[%clk 0:02:54]}  Nf6 {[%clk 0:03:00]} 4. d3 {[%clk 0:02:54]}  Be7 {[%clk 0:03:00]} 5. O-O {[%clk 0:02:52]}  d6 {[%clk 0:03:00]} 6. a4 {[%clk 0:02:49]}  Bg4 {[%clk 0:02:59]} 7. a5 {[%clk 0:02:46]}  Qd7 {[%clk 0:02:58]} 8. a6 {[%clk 0:02:42]}  b6 {[%clk 0:02:56]} 9. c3 {[%clk 0:02:41]}  Nb8 {[%clk 0:02:40]} 10. Nbd2 {[%clk 0:02:24]}  c6 {[%clk 0:02:36]} 11. Re1 {[%clk 0:02:19]}  b5 {[%clk 0:02:32]} 12. Bb3 {[%clk 0:02:17]}  Qc8 {[%clk 0:02:32]} 13. Nf1 {[%clk 0:02:13]}  O-O {[%clk 0:02:27]} 14. Ng3 {[%clk 0:01:59]}  Nxa6 {[%clk 0:02:25]} 15. d4 {[%clk 0:01:55]}  Bxf3 {[%clk 0:02:15]} 16. Qxf3 {[%clk 0:01:54]}  c5 {[%clk 0:02:15]} 17. Nf5 {[%clk 0:01:50]}  c4 {[%clk 0:02:06]} 18. Nxe7+ {[%clk 0:01:49]} 1-0


[Site "https://www.chess.com"]

[Event "Titled Tuesday Blitz August 08 Early 2023"]
[White "Llanos, Guillermo"]
[Black "Parpiev, Isaak"]
[WhiteFideId "100358"]
[BlackFideId "34281576"]
[WhiteElo "2418"]
[BlackElo "2535"]
[Result "0-1"]
[Round "11"]
[TimeControl "180+1"]
[Date "2023.08.08"]
[WhiteClock "0:00:00"]
[BlackClock "0:00:03"]
[Board "88"]

1. b3 {[%clk 0:03:00]}  Nf6 {[%clk 0:02:54]} 2. Bb2 {[%clk 0:03:01]}  d5 {[%clk 0:02:53]} 3. Nf3 {[%clk 0:03:00]}  c5 {[%clk 0:02:51]} 4. e3 {[%clk 0:03:00]}  a6 {[%clk 0:02:49]} 5. c4 {[%clk 0:03:00]}  e6 {[%clk 0:02:45]} 6. Nc3 {[%clk 0:02:59]}  Nc6 {[%clk 0:02:46]} 7. cxd5 {[%clk 0:02:58]}  exd5 {[%clk 0:02:46]} 8. d4 {[%clk 0:02:56]}  Bg4 {[%clk 0:02:43]} 9. Be2 {[%clk 0:02:54]}  Bxf3 {[%clk 0:02:40]} 10. Bxf3 {[%clk 0:02:53]}  cxd4 {[%clk 0:02:41]} 11. exd4 {[%clk 0:02:54]}  Bb4 {[%clk 0:02:37]} 12. O-O {[%clk 0:02:52]}  O-O {[%clk 0:02:36]} 13. Qd3 {[%clk 0:02:43]}  Re8 {[%clk 0:02:33]} 14. Rac1 {[%clk 0:02:35]}  Bxc3 {[%clk 0:02:25]} 15. Bxc3 {[%clk 0:02:28]}  Ne4 {[%clk 0:02:24]} 16. Rfe1 {[%clk 0:01:42]}  Qg5 {[%clk 0:02:15]} 17. Bxe4 {[%clk 0:01:06]}  Rxe4 {[%clk 0:02:06]} 18. f3 {[%clk 0:00:47]}  Ree8 {[%clk 0:01:51]} 19. Bd2 {[%clk 0:00:45]}  Qf6 {[%clk 0:01:49]} 20. Be3 {[%clk 0:00:45]}  h6 {[%clk 0:01:47]} 21. Bf2 {[%clk 0:00:41]}  Rac8 {[%clk 0:01:42]} 22. Qd2 {[%clk 0:00:40]}  Qf5 {[%clk 0:01:36]} 23. Rxe8+ {[%clk 0:00:35]}  Rxe8 {[%clk 0:01:36]} 24. Kf1 {[%clk 0:00:33]}  Qg6 {[%clk 0:01:20]} 25. g4 {[%clk 0:00:29]}  Qf6 {[%clk 0:01:18]} 26. Kg2 {[%clk 0:00:28]}  g5 {[%clk 0:00:51]} 27. Rc5 {[%clk 0:00:26]}  Qd6 {[%clk 0:00:46]} 28. Be3 {[%clk 0:00:19]}  Qe6 {[%clk 0:00:42]} 29. Bf2 {[%clk 0:00:16]}  Ne7 {[%clk 0:00:40]} 30. Bg3 {[%clk 0:00:16]}  Ng6 {[%clk 0:00:38]} 31. Rc2 {[%clk 0:00:14]}  f5 {[%clk 0:00:34]} 32. h3 {[%clk 0:00:12]}  fxg4 {[%clk 0:00:26]} 33. hxg4 {[%clk 0:00:12]}  Re7 {[%clk 0:00:20]} 34. Qd3 {[%clk 0:00:11]}  Rf7 {[%clk 0:00:17]} 35. Re2 {[%clk 0:00:10]}  Qd7 {[%clk 0:00:17]} 36. Qe3 {[%clk 0:00:08]}  Re7 {[%clk 0:00:13]} 37. Qd3 {[%clk 0:00:07]}  Rxe2+ {[%clk 0:00:13]} 38. Qxe2 {[%clk 0:00:07]}  Qe7 {[%clk 0:00:13]} 39. Qxe7 {[%clk 0:00:06]}  Nxe7 {[%clk 0:00:13]} 40. f4 {[%clk 0:00:06]}  Kf7 {[%clk 0:00:10]} 41. f5 {[%clk 0:00:06]}  h5 {[%clk 0:00:09]} 42. Kf3 {[%clk 0:00:05]}  h4 {[%clk 0:00:08]} 43. Bd6 {[%clk 0:00:04]}  Nc6 {[%clk 0:00:05]} 44. Bc5 {[%clk 0:00:04]}  Nb8 {[%clk 0:00:03]} 45. Bd6 {[%clk 0:00:04]}  Nd7 {[%clk 0:00:03]} 46. Be5 {[%clk 0:00:03]}  Nb6 {[%clk 0:00:02]} 47. a4 {[%clk 0:00:03]}  Nd7 {[%clk 0:00:02]} 48. Bd6 {[%clk 0:00:03]}  Nf6 {[%clk 0:00:02]} 49. Be5 {[%clk 0:00:02]}  Ne4 {[%clk 0:00:02]} 50. b4 {[%clk 0:00:01]}  Nd2+ {[%clk 0:00:03]} 51. Kg2 {[%clk 0:00:00]}  Nc4 {[%clk 0:00:03]} 0-1


[Site "https://www.chess.com"]

[Event "Titled Tuesday Blitz August 08 Early 2023"]
[White "Begunov, Konstantin"]
[Black "Tikhonov, Viacheslav"]
[WhiteFideId "4118510"]
[BlackFideId "44196407"]
[WhiteElo "2414"]
[BlackElo "2527"]
[Result "1-0"]
[Round "11"]
[TimeControl "180+1"]
[Date "2023.08.08"]
[WhiteClock "0:00:45"]
[BlackClock "0:00:11"]
[Board "89"]

1. d4 {[%clk 0:02:56]}  d5 {[%clk 0:03:00]} 2. c4 {[%clk 0:02:56]}  e6 {[%clk 0:03:00]} 3. Nc3 {[%clk 0:02:55]}  Nf6 {[%clk 0:03:01]} 4. cxd5 {[%clk 0:02:55]}  exd5 {[%clk 0:03:02]} 5. Bg5 {[%clk 0:02:55]}  c6 {[%clk 0:03:01]} 6. e3 {[%clk 0:02:55]}  h6 {[%clk 0:03:02]} 7. Bh4 {[%clk 0:02:55]}  Be7 {[%clk 0:03:02]} 8. Qc2 {[%clk 0:02:55]}  O-O {[%clk 0:03:03]} 9. Nf3 {[%clk 0:02:55]}  Nbd7 {[%clk 0:02:57]} 10. Bd3 {[%clk 0:02:55]}  Re8 {[%clk 0:02:55]} 11. O-O {[%clk 0:02:54]}  Ne4 {[%clk 0:02:53]} 12. Bxe4 {[%clk 0:02:51]}  Bxh4 {[%clk 0:02:50]} 13. Bh7+ {[%clk 0:02:50]}  Kh8 {[%clk 0:02:50]} 14. Bf5 {[%clk 0:02:50]}  Bf6 {[%clk 0:02:46]} 15. b4 {[%clk 0:02:50]}  b5 {[%clk 0:02:42]} 16. a4 {[%clk 0:02:50]}  Nb6 {[%clk 0:02:34]} 17. axb5 {[%clk 0:02:41]}  cxb5 {[%clk 0:02:29]} 18. Nxb5 {[%clk 0:02:34]}  Bxf5 {[%clk 0:02:15]} 19. Qxf5 {[%clk 0:02:33]}  Qe7 {[%clk 0:02:16]} 20. Rfb1 {[%clk 0:02:16]}  Rec8 {[%clk 0:02:06]} 21. Ne1 {[%clk 0:01:56]}  Rc4 {[%clk 0:01:59]} 22. Nd3 {[%clk 0:01:52]}  g6 {[%clk 0:02:00]} 23. Qh3 {[%clk 0:01:48]}  Kg7 {[%clk 0:01:59]} 24. Nc5 {[%clk 0:01:47]}  h5 {[%clk 0:01:21]} 25. Qf3 {[%clk 0:01:44]}  h4 {[%clk 0:01:08]} 26. h3 {[%clk 0:01:44]}  Qe8 {[%clk 0:00:58]} 27. Nd6 {[%clk 0:01:40]}  Qd8 {[%clk 0:00:47]} 28. Nxc4 {[%clk 0:01:38]}  Nxc4 {[%clk 0:00:48]} 29. Ra2 {[%clk 0:01:18]}  Qd6 {[%clk 0:00:45]} 30. Ra6 {[%clk 0:01:11]}  Qe7 {[%clk 0:00:42]} 31. Rba1 {[%clk 0:01:08]}  Bg5 {[%clk 0:00:34]} 32. Qxd5 {[%clk 0:01:02]}  Nxe3 {[%clk 0:00:33]} 33. fxe3 {[%clk 0:00:54]}  Qxe3+ {[%clk 0:00:33]} 34. Kh1 {[%clk 0:00:55]}  Rd8 {[%clk 0:00:32]} 35. Qe5+ {[%clk 0:00:52]}  Qxe5 {[%clk 0:00:26]} 36. dxe5 {[%clk 0:00:53]}  Rd4 {[%clk 0:00:18]} 37. e6 {[%clk 0:00:51]}  Kg8 {[%clk 0:00:14]} 38. Rxa7 {[%clk 0:00:49]}  fxe6 {[%clk 0:00:11]} 39. Nxe6 {[%clk 0:00:48]}  Rd5 {[%clk 0:00:12]} 40. Nxg5 {[%clk 0:00:48]}  Rxg5 {[%clk 0:00:11]} 41. Rb7 {[%clk 0:00:45]} 1-0


[Site "https://www.chess.com"]

[Event "Titled Tuesday Blitz August 08 Early 2023"]
[White "Legenia, Artem"]
[Black "Berezin, Viktor"]
[WhiteFideId "14136945"]
[BlackFideId "14107872"]
[WhiteElo "2406"]
[BlackElo "2517"]
[Result "1-0"]
[Round "11"]
[TimeControl "180+1"]
[Date "2023.08.08"]
[WhiteClock "0:00:45"]
[BlackClock "0:00:02"]
[Board "92"]

1. b4 {[%clk 0:03:00]}  e5 {[%clk 0:02:58]} 2. a3 {[%clk 0:02:59]}  d6 {[%clk 0:02:57]} 3. Bb2 {[%clk 0:03:00]}  g6 {[%clk 0:02:57]} 4. e3 {[%clk 0:03:00]}  Bg7 {[%clk 0:02:57]} 5. Nf3 {[%clk 0:03:00]}  Nf6 {[%clk 0:02:57]} 6. Be2 {[%clk 0:03:01]}  O-O {[%clk 0:02:58]} 7. c4 {[%clk 0:03:01]}  a5 {[%clk 0:02:54]} 8. O-O {[%clk 0:02:58]}  Na6 {[%clk 0:02:53]} 9. b5 {[%clk 0:02:56]}  Nc5 {[%clk 0:02:53]} 10. Nc3 {[%clk 0:02:57]}  e4 {[%clk 0:02:52]} 11. Nd4 {[%clk 0:02:54]}  h5 {[%clk 0:02:46]} 12. d3 {[%clk 0:02:51]}  exd3 {[%clk 0:02:38]} 13. Bxd3 {[%clk 0:02:51]}  Re8 {[%clk 0:02:36]} 14. a4 {[%clk 0:02:49]}  Ng4 {[%clk 0:02:19]} 15. h3 {[%clk 0:02:43]}  Ne5 {[%clk 0:02:16]} 16. Be2 {[%clk 0:02:43]}  Qg5 {[%clk 0:02:13]} 17. Kh2 {[%clk 0:02:35]}  Qd8 {[%clk 0:02:00]} 18. Nd5 {[%clk 0:02:31]}  Ne4 {[%clk 0:01:51]} 19. Rc1 {[%clk 0:02:28]}  Bd7 {[%clk 0:01:28]} 20. b6 {[%clk 0:02:06]}  cxb6 {[%clk 0:01:20]} 21. Ba3 {[%clk 0:02:05]}  Nc6 {[%clk 0:00:54]} 22. Nb5 {[%clk 0:02:02]}  Qg5 {[%clk 0:00:43]} 23. Qe1 {[%clk 0:01:47]}  Rad8 {[%clk 0:00:27]} 24. f4 {[%clk 0:01:37]}  Qf5 {[%clk 0:00:22]} 25. Bf3 {[%clk 0:01:30]}  h4 {[%clk 0:00:21]} 26. Bxe4 {[%clk 0:01:24]}  Qxe4 {[%clk 0:00:17]} 27. Nxd6 {[%clk 0:01:24]}  Qd3 {[%clk 0:00:14]} 28. Nxe8 {[%clk 0:01:17]}  Rxe8 {[%clk 0:00:15]} 29. Bd6 {[%clk 0:01:12]}  Bf5 {[%clk 0:00:13]} 30. Rd1 {[%clk 0:01:08]}  Qxc4 {[%clk 0:00:12]} 31. Nxb6 {[%clk 0:01:07]}  Qb3 {[%clk 0:00:12]} 32. Nd5 {[%clk 0:01:05]}  Kh8 {[%clk 0:00:10]} 33. Qxh4+ {[%clk 0:01:05]}  Kg8 {[%clk 0:00:09]} 34. Nf6+ {[%clk 0:01:05]}  Bxf6 {[%clk 0:00:09]} 35. Qxf6 {[%clk 0:01:05]}  Rxe3 {[%clk 0:00:07]} 36. Rde1 {[%clk 0:01:04]}  Rxh3+ {[%clk 0:00:07]} 37. Kg1 {[%clk 0:01:03]}  Qb6+ {[%clk 0:00:06]} 38. Rf2 {[%clk 0:01:01]}  Re3 {[%clk 0:00:06]} 39. Rd1 {[%clk 0:00:53]}  Re6 {[%clk 0:00:06]} 40. Qh4 {[%clk 0:00:51]}  Nd4 {[%clk 0:00:06]} 41. Be5 {[%clk 0:00:48]}  Ne2+ {[%clk 0:00:07]} 42. Kf1 {[%clk 0:00:46]}  Re8 {[%clk 0:00:02]} 43. Qh8# {[%clk 0:00:45]} 1-0


[Site "https://www.chess.com"]

[Event "Titled Tuesday Blitz August 08 Early 2023"]
[White "dr_tatiana"]
[Black "Ansh M Shah"]
[BlackFideId "25033379"]
[WhiteElo "2395"]
[BlackElo "2516"]
[Result "0-1"]
[Round "11"]
[TimeControl "180+1"]
[Date "2023.08.08"]
[WhiteClock "0:00:00"]
[BlackClock "0:00:04"]
[Board "94"]

1. e4 {[%clk 0:03:00]}  c5 {[%clk 0:02:58]} 2. Nc3 {[%clk 0:03:00]}  Nc6 {[%clk 0:02:59]} 3. d3 {[%clk 0:03:00]}  g6 {[%clk 0:02:59]} 4. g3 {[%clk 0:03:01]}  Bg7 {[%clk 0:03:00]} 5. Bg2 {[%clk 0:03:01]}  d6 {[%clk 0:03:00]} 6. f4 {[%clk 0:03:02]}  Nf6 {[%clk 0:03:01]} 7. Nf3 {[%clk 0:03:02]}  O-O {[%clk 0:03:01]} 8. O-O {[%clk 0:03:03]}  Bg4 {[%clk 0:03:00]} 9. Be3 {[%clk 0:02:58]}  Nd4 {[%clk 0:02:54]} 10. Bxd4 {[%clk 0:02:58]}  cxd4 {[%clk 0:02:55]} 11. Ne2 {[%clk 0:02:58]}  e5 {[%clk 0:02:55]} 12. fxe5 {[%clk 0:02:57]}  dxe5 {[%clk 0:02:56]} 13. Nxe5 {[%clk 0:02:55]}  Qb6 {[%clk 0:02:53]} 14. Nc4 {[%clk 0:02:36]}  Qc7 {[%clk 0:02:53]} 15. Qd2 {[%clk 0:02:19]}  b5 {[%clk 0:02:42]} 16. e5 {[%clk 0:02:19]}  Nh5 {[%clk 0:02:05]} 17. Nd6 {[%clk 0:02:09]}  Rab8 {[%clk 0:01:53]} 18. Nxd4 {[%clk 0:01:54]}  Bxe5 {[%clk 0:01:49]} 19. N6xb5 {[%clk 0:01:54]}  Qc5 {[%clk 0:01:34]} 20. c3 {[%clk 0:01:54]}  Rxb5 {[%clk 0:01:31]} 21. Qf2 {[%clk 0:01:17]}  Bxd4 {[%clk 0:01:20]} 22. cxd4 {[%clk 0:01:18]}  Qb4 {[%clk 0:01:13]} 23. h3 {[%clk 0:01:11]}  Be6 {[%clk 0:01:10]} 24. g4 {[%clk 0:01:11]}  Ng7 {[%clk 0:01:09]} 25. b3 {[%clk 0:01:12]}  Rd8 {[%clk 0:01:07]} 26. d5 {[%clk 0:01:12]}  Rbxd5 {[%clk 0:00:57]} 27. Bxd5 {[%clk 0:01:11]}  Bxd5 {[%clk 0:00:58]} 28. Rac1 {[%clk 0:01:07]}  Rf8 {[%clk 0:00:57]} 29. Qxa7 {[%clk 0:01:01]}  Ne6 {[%clk 0:00:51]} 30. Rf2 {[%clk 0:00:23]}  Qd6 {[%clk 0:00:40]} 31. Qe3 {[%clk 0:00:21]}  Ba8 {[%clk 0:00:32]} 32. Rcf1 {[%clk 0:00:18]}  Qd5 {[%clk 0:00:28]} 33. Kh2 {[%clk 0:00:19]}  Nd4 {[%clk 0:00:21]} 34. Qe4 {[%clk 0:00:13]}  Qd6+ {[%clk 0:00:19]} 35. Qf4 {[%clk 0:00:13]}  Qd7 {[%clk 0:00:12]} 36. Qf6 {[%clk 0:00:12]}  Qc7+ {[%clk 0:00:10]} 37. Qf4 {[%clk 0:00:12]}  Qd7 {[%clk 0:00:08]} 38. h4 {[%clk 0:00:12]}  Qd8 {[%clk 0:00:07]} 39. Kg3 {[%clk 0:00:11]}  Ne6 {[%clk 0:00:07]} 40. Qe3 {[%clk 0:00:10]}  Qd6+ {[%clk 0:00:07]} 41. Kh3 {[%clk 0:00:11]}  Qd7 {[%clk 0:00:06]} 42. h5 {[%clk 0:00:10]}  Qd5 {[%clk 0:00:05]} 43. h6 {[%clk 0:00:07]}  Ng5+ {[%clk 0:00:05]} 44. Kg3 {[%clk 0:00:06]}  Ne6 {[%clk 0:00:04]} 45. Kh3 {[%clk 0:00:02]}  Qd6 {[%clk 0:00:04]} 46. Kh4 {[%clk 0:00:01]}  Qe7+ {[%clk 0:00:03]} 47. Kg3 {[%clk 0:00:02]}  Qc7+ {[%clk 0:00:03]} 48. Kh3 {[%clk 0:00:02]}  Qd6 {[%clk 0:00:03]} 49. Kh4 {[%clk 0:00:02]}  Qd8+ {[%clk 0:00:04]} 50. Kg3 {[%clk 0:00:02]}  f5 {[%clk 0:00:04]} 51. gxf5 {[%clk 0:00:02]}  Qc7+ {[%clk 0:00:04]} 52. Kh3 {[%clk 0:00:03]}  gxf5 {[%clk 0:00:05]} 53. Rxf5 {[%clk 0:00:04]}  Rxf5 {[%clk 0:00:04]} 54. Rxf5 {[%clk 0:00:04]}  Qd7 {[%clk 0:00:04]} 55. Qg1+ {[%clk 0:00:04]}  Kh8 {[%clk 0:00:04]} 56. Qg7+ {[%clk 0:00:00]}  Nxg7 {[%clk 0:00:04]} 0-1


[Site "https://www.chess.com"]

[Event "Titled Tuesday Blitz August 08 Early 2023"]
[White "Nemec, Jachym"]
[Black "GaiozNigalidze"]
[WhiteFideId "23716525"]
[WhiteElo "2510"]
[BlackElo "2378"]
[Result "0-1"]
[Round "11"]
[TimeControl "180+1"]
[Date "2023.08.08"]
[WhiteClock "0:00:07"]
[BlackClock "0:00:09"]
[Board "96"]

1. c4 {[%clk 0:03:00]}  Nf6 {[%clk 0:02:53]} 2. Nc3 {[%clk 0:03:00]}  e6 {[%clk 0:02:52]} 3. e4 {[%clk 0:02:59]}  Nc6 {[%clk 0:02:50]} 4. Nf3 {[%clk 0:02:55]}  Bb4 {[%clk 0:02:48]} 5. e5 {[%clk 0:02:54]}  Bxc3 {[%clk 0:02:49]} 6. bxc3 {[%clk 0:02:53]}  Ng8 {[%clk 0:02:49]} 7. d4 {[%clk 0:02:52]}  d6 {[%clk 0:02:49]} 8. exd6 {[%clk 0:02:52]}  cxd6 {[%clk 0:02:50]} 9. Bd3 {[%clk 0:02:52]}  Nf6 {[%clk 0:02:50]} 10. O-O {[%clk 0:02:52]}  h6 {[%clk 0:02:48]} 11. Qe2 {[%clk 0:02:30]}  Qa5 {[%clk 0:02:44]} 12. a4 {[%clk 0:02:25]}  O-O {[%clk 0:02:32]} 13. Ba3 {[%clk 0:02:25]}  Rd8 {[%clk 0:02:31]} 14. Rfc1 {[%clk 0:02:21]}  Qh5 {[%clk 0:02:29]} 15. c5 {[%clk 0:02:14]}  dxc5 {[%clk 0:02:25]} 16. Bxc5 {[%clk 0:02:14]}  b6 {[%clk 0:02:13]} 17. Ba3 {[%clk 0:02:13]}  Bb7 {[%clk 0:02:14]} 18. Re1 {[%clk 0:02:06]}  Rac8 {[%clk 0:02:04]} 19. Rac1 {[%clk 0:01:48]}  Rc7 {[%clk 0:01:44]} 20. Bb2 {[%clk 0:01:40]}  Nd5 {[%clk 0:01:40]} 21. Qe4 {[%clk 0:01:38]}  Nf6 {[%clk 0:01:39]} 22. Qf4 {[%clk 0:01:38]}  Rcc8 {[%clk 0:01:23]} 23. Ba3 {[%clk 0:01:35]}  Nd5 {[%clk 0:01:20]} 24. Qg3 {[%clk 0:01:33]}  Nf6 {[%clk 0:01:15]} 25. Nd2 {[%clk 0:01:27]}  Qg5 {[%clk 0:01:08]} 26. Qxg5 {[%clk 0:01:07]}  hxg5 {[%clk 0:01:07]} 27. Nb3 {[%clk 0:00:57]}  Nd5 {[%clk 0:00:59]} 28. Bb2 {[%clk 0:00:54]}  Nf4 {[%clk 0:00:57]} 29. Bf1 {[%clk 0:00:54]}  Ne7 {[%clk 0:00:55]} 30. g3 {[%clk 0:00:51]}  Nfd5 {[%clk 0:00:55]} 31. c4 {[%clk 0:00:50]}  Nf6 {[%clk 0:00:46]} 32. d5 {[%clk 0:00:49]}  Nf5 {[%clk 0:00:31]} 33. dxe6 {[%clk 0:00:49]}  fxe6 {[%clk 0:00:32]} 34. Rxe6 {[%clk 0:00:47]}  Kf7 {[%clk 0:00:33]} 35. Rce1 {[%clk 0:00:46]}  Rc7 {[%clk 0:00:33]} 36. R6e5 {[%clk 0:00:42]}  Nd6 {[%clk 0:00:30]} 37. c5 {[%clk 0:00:42]}  bxc5 {[%clk 0:00:26]} 38. Nxc5 {[%clk 0:00:41]}  Bd5 {[%clk 0:00:25]} 39. Ne6 {[%clk 0:00:40]}  Bxe6 {[%clk 0:00:22]} 40. Rxe6 {[%clk 0:00:40]}  Nde8 {[%clk 0:00:21]} 41. R6e5 {[%clk 0:00:38]}  g4 {[%clk 0:00:21]} 42. Ra5 {[%clk 0:00:29]}  Rd2 {[%clk 0:00:19]} 43. Ba1 {[%clk 0:00:27]}  Kg6 {[%clk 0:00:20]} 44. Bg2 {[%clk 0:00:25]}  Nd6 {[%clk 0:00:20]} 45. Be5 {[%clk 0:00:24]}  Rd7 {[%clk 0:00:18]} 46. Bf4 {[%clk 0:00:24]}  Rd3 {[%clk 0:00:16]} 47. Bf1 {[%clk 0:00:24]}  Rd4 {[%clk 0:00:16]} 48. Rae5 {[%clk 0:00:19]}  Nf5 {[%clk 0:00:16]} 49. Bb5 {[%clk 0:00:18]}  Rd8 {[%clk 0:00:14]} 50. Re6 {[%clk 0:00:18]}  Rd1 {[%clk 0:00:14]} 51. Be8+ {[%clk 0:00:17]}  Kh7 {[%clk 0:00:12]} 52. Bb5 {[%clk 0:00:17]}  Kg6 {[%clk 0:00:12]} 53. Bf1 {[%clk 0:00:16]}  Rxe1 {[%clk 0:00:10]} 54. Rxe1 {[%clk 0:00:17]}  Nd4 {[%clk 0:00:10]} 55. Bd3+ {[%clk 0:00:17]}  Kf7 {[%clk 0:00:10]} 56. Rd1 {[%clk 0:00:17]}  Ke7 {[%clk 0:00:09]} 57. Kg2 {[%clk 0:00:14]}  Nf3 {[%clk 0:00:07]} 58. Be3 {[%clk 0:00:14]}  Ne5 {[%clk 0:00:07]} 59. Bc5+ {[%clk 0:00:14]}  Ke6 {[%clk 0:00:07]} 60. Bc4+ {[%clk 0:00:14]}  Nd5 {[%clk 0:00:07]} 61. Re1 {[%clk 0:00:12]}  Kf5 {[%clk 0:00:07]} 62. Rd1 {[%clk 0:00:07]}  Nxc4 {[%clk 0:00:06]} 63. Bd4 {[%clk 0:00:07]}  g6 {[%clk 0:00:06]} 64. Rb1 {[%clk 0:00:07]}  Rd7 {[%clk 0:00:05]} 65. Rb5 {[%clk 0:00:07]}  Nb6 {[%clk 0:00:05]} 66. a5 {[%clk 0:00:06]}  Nc4 {[%clk 0:00:06]} 67. Rc5 {[%clk 0:00:07]}  Ne5 {[%clk 0:00:06]} 68. Ba1 {[%clk 0:00:06]}  Nd3 {[%clk 0:00:06]} 69. Rb5 {[%clk 0:00:06]}  Ne1+ {[%clk 0:00:06]} 70. Kf1 {[%clk 0:00:06]}  Nf3 {[%clk 0:00:07]} 71. a6 {[%clk 0:00:06]}  Nxh2+ {[%clk 0:00:07]} 72. Kg2 {[%clk 0:00:07]}  Nf3 {[%clk 0:00:08]} 73. Rb7 {[%clk 0:00:08]}  Ke6 {[%clk 0:00:08]} 74. Bh8 {[%clk 0:00:08]}  Ng5 {[%clk 0:00:08]} 75. Bd4 {[%clk 0:00:08]}  Ne4 {[%clk 0:00:08]} 76. Bxa7 {[%clk 0:00:08]}  Nd6 {[%clk 0:00:08]} 77. Rb6 {[%clk 0:00:09]}  Rxa7 {[%clk 0:00:08]} 78. Rb1 {[%clk 0:00:07]}  Rxa6 {[%clk 0:00:09]} 0-1


[Site "https://www.chess.com"]

[Event "Titled Tuesday Blitz August 08 Early 2023"]
[White "Liu, Casper"]
[Black "MarijaKuznecova"]
[WhiteFideId "1454153"]
[WhiteElo "2496"]
[BlackElo "2364"]
[Result "1-0"]
[Round "11"]
[TimeControl "180+1"]
[Date "2023.08.08"]
[WhiteClock "0:00:57"]
[BlackClock "0:00:16"]
[Board "98"]

1. e4 {[%clk 0:03:00]}  c5 {[%clk 0:02:59]} 2. d4 {[%clk 0:02:59]}  cxd4 {[%clk 0:02:59]} 3. Qxd4 {[%clk 0:03:00]}  Nc6 {[%clk 0:02:59]} 4. Qe3 {[%clk 0:03:00]}  g6 {[%clk 0:02:57]} 5. Nc3 {[%clk 0:03:00]}  Bg7 {[%clk 0:02:57]} 6. Bd2 {[%clk 0:03:01]}  e6 {[%clk 0:02:56]} 7. O-O-O {[%clk 0:03:01]}  Nge7 {[%clk 0:02:57]} 8. h4 {[%clk 0:03:00]}  h5 {[%clk 0:02:56]} 9. Nf3 {[%clk 0:03:00]}  O-O {[%clk 0:02:55]} 10. Be2 {[%clk 0:02:57]}  d5 {[%clk 0:02:51]} 11. exd5 {[%clk 0:02:57]}  exd5 {[%clk 0:02:52]} 12. Nb5 {[%clk 0:02:38]}  Nf5 {[%clk 0:02:27]} 13. Qa3 {[%clk 0:02:26]}  a6 {[%clk 0:02:22]} 14. Bf4 {[%clk 0:02:05]}  Qf6 {[%clk 0:01:47]} 15. Bg5 {[%clk 0:01:46]}  Qxb2+ {[%clk 0:01:15]} 16. Qxb2 {[%clk 0:01:44]}  Bxb2+ {[%clk 0:01:15]} 17. Kxb2 {[%clk 0:01:44]}  axb5 {[%clk 0:01:16]} 18. Bxb5 {[%clk 0:01:43]}  Be6 {[%clk 0:00:55]} 19. Bf6 {[%clk 0:01:30]}  Ra5 {[%clk 0:00:52]} 20. a4 {[%clk 0:01:27]}  Na7 {[%clk 0:00:50]} 21. Bc3 {[%clk 0:01:24]}  Rxb5+ {[%clk 0:00:44]} 22. axb5 {[%clk 0:01:24]}  Nxb5 {[%clk 0:00:45]} 23. Bb4 {[%clk 0:01:21]}  Rc8 {[%clk 0:00:44]} 24. Ng5 {[%clk 0:01:10]}  Nbd6 {[%clk 0:00:21]} 25. Nxe6 {[%clk 0:00:59]}  Nc4+ {[%clk 0:00:21]} 26. Kb3 {[%clk 0:00:59]}  fxe6 {[%clk 0:00:21]} 27. Rhe1 {[%clk 0:01:00]}  Kf7 {[%clk 0:00:20]} 28. c3 {[%clk 0:00:59]}  Ne7 {[%clk 0:00:18]} 29. Bxe7 {[%clk 0:00:56]}  Kxe7 {[%clk 0:00:19]} 30. Rxd5 {[%clk 0:00:57]}  Na5+ {[%clk 0:00:16]} 31. Rxa5 {[%clk 0:00:57]} 1-0


[Site "https://www.chess.com"]